[Event "*** MasterClass Titled Tuesday Blitz"]
[Site "Chess.com"]
[Date "2017.11.07"]
[Round "6"]
[White "Khamrakulov_Djurabek"]
[Black "DanielNaroditsky"]
[Result "0-1"]
[WhiteElo "2601"]
[BlackElo "2733"]
[TimeControl "180+2"]
[EndTime "15:26:20 PST"]
[Termination "DanielNaroditsky won by resignation"]

1. e4 {[%clk 0:03:01.9]} 1... e5 {[%clk 0:03:00.7]} 2. Nf3 {[%clk 0:03:02.3]}
2... Nc6 {[%clk 0:03:02.4]} 3. d4 {[%clk 0:03:03.8]} 3... exd4 {[%clk
0:03:04.3]} 4. Nxd4 {[%clk 0:03:05]} 4... Bc5 {[%clk 0:03:06.2]} 5. Be3 {[%clk
0:03:05.8]} 5... Qf6 {[%clk 0:03:04.5]} 6. c3 {[%clk 0:03:07]} 6... Nge7 {[%clk
0:03:05.6]} 7. g3 {[%clk 0:03:08.5]} 7... O-O {[%clk 0:03:05.4]} 8. Bg2 {[%clk
0:03:10]} 8... b6 {[%clk 0:03:04.8]} 9. b4 {[%clk 0:03:03.2]} 9... Bxd4 {[%clk
0:03:02.2]} 10. cxd4 {[%clk 0:03:04.3]} 10... Ba6 {[%clk 0:03:01.1]} 11. Qd2
{[%clk 0:02:35.7]} 11... Qg6 {[%clk 0:02:55.1]} 12. a4 {[%clk 0:02:30.6]} 12...
Bb7 {[%clk 0:02:32]} 13. d5 {[%clk 0:02:24.3]} 13... Ne5 {[%clk 0:02:32.6]} 14.
Qc3 {[%clk 0:02:25]} 14... Ng4 {[%clk 0:02:30.4]} 15. O-O {[%clk 0:01:59.7]}
15... c6 {[%clk 0:02:31.8]} 16. dxc6 {[%clk 0:01:33.5]} 16... Bxc6 {[%clk
0:02:26.4]} 17. Nd2 {[%clk 0:01:22.7]} 17... Rac8 {[%clk 0:02:26.1]} 18. Qd4
{[%clk 0:01:20]} 18... f5 {[%clk 0:02:27.3]} 19. b5 {[%clk 0:01:16.5]} 19...
Nxe3 {[%clk 0:02:27.1]} 20. fxe3 {[%clk 0:01:16.3]} 20... Ba8 {[%clk 0:02:24.9]}
21. Qxd7 {[%clk 0:01:15.7]} 21... Qf6 {[%clk 0:02:22.7]} 22. Qxa7 {[%clk
0:01:10.3]} 22... Rfd8 {[%clk 0:02:18.5]} 23. Nb3 {[%clk 0:01:03]} 23... Rd3
{[%clk 0:02:17.4]} 24. Nd4 {[%clk 0:01:02.6]} 24... Rxe3 {[%clk 0:02:18.7]} 25.
Rad1 {[%clk 0:00:40.9]} 25... Bxe4 {[%clk 0:02:18.9]} 26. Bxe4 {[%clk
0:00:40.4]} 26... Rxe4 {[%clk 0:02:20.8]} 27. Qd7 {[%clk 0:00:41]} 27... Rf8
{[%clk 0:02:18.5]} 28. Nxf5 {[%clk 0:00:40.6]} 28... Nxf5 {[%clk 0:02:19.1]} 29.
Qd5+ {[%clk 0:00:28.1]} 29... Qe6 {[%clk 0:02:20.3]} 30. Qxe6+ {[%clk
0:00:21.9]} 30... Rxe6 {[%clk 0:02:22.2]} 31. g4 {[%clk 0:00:18.5]} 31... Ne3
{[%clk 0:02:20.4]} 32. Rxf8+ {[%clk 0:00:19]} 32... Kxf8 {[%clk 0:02:22.3]} 33.
Rd7 {[%clk 0:00:19.5]} 33... Nxg4 {[%clk 0:02:21.3]} 34. Rc7 {[%clk 0:00:17.1]}
34... Ne5 {[%clk 0:02:21.8]} 35. Kg2 {[%clk 0:00:17.5]} 35... Nd3 {[%clk
0:02:21.8]} 36. Kf3 {[%clk 0:00:18.6]} 36... Re7 {[%clk 0:02:17.9]} 37. Rc8+
{[%clk 0:00:16.9]} 37... Kf7 {[%clk 0:02:19.5]} 38. Rb8 {[%clk 0:00:16]} 38...
Ne5+ {[%clk 0:02:18.7]} 39. Kf2 {[%clk 0:00:16.2]} 39... Nc4 {[%clk 0:02:20.6]}
40. Rc8 {[%clk 0:00:17.1]} 40... Nb2 {[%clk 0:02:21.4]} 41. Ra8 {[%clk
0:00:17.9]} 41... Re4 {[%clk 0:02:22.5]} 42. a5 {[%clk 0:00:19.1]} 42... bxa5
{[%clk 0:02:23.8]} 43. b6 {[%clk 0:00:19.4]} 43... Rb4 {[%clk 0:02:25]} 0-1

[Event "*** MasterClass Titled Tuesday Blitz"]
[Site "Chess.com"]
[Date "2017.11.07"]
[Round "6"]
[White "Msb2"]
[Black "Vrolijk"]
[Result "1-0"]
[WhiteElo "2654"]
[BlackElo "2493"]
[TimeControl "180+2"]
[EndTime "15:26:38 PST"]
[Termination "Msb2 won by resignation"]

1. d4 {[%clk 0:03:01.9]} 1... Nf6 {[%clk 0:02:51.1]} 2. c4 {[%clk 0:03:02.6]}
2... e6 {[%clk 0:02:52.6]} 3. Nf3 {[%clk 0:03:03.4]} 3... b6 {[%clk 0:02:53]} 4.
g3 {[%clk 0:03:04.4]} 4... Bb4+ {[%clk 0:02:54.4]} 5. Bd2 {[%clk 0:03:04.9]}
5... Be7 {[%clk 0:02:54.6]} 6. Bg2 {[%clk 0:03:06.1]} 6... Bb7 {[%clk
0:02:55.6]} 7. O-O {[%clk 0:03:06.2]} 7... c6 {[%clk 0:02:56]} 8. Nc3 {[%clk
0:03:01.8]} 8... d5 {[%clk 0:02:56.7]} 9. Bf4 {[%clk 0:03:02.9]} 9... O-O {[%clk
0:02:57]} 10. Rc1 {[%clk 0:03:03.2]} 10... dxc4 {[%clk 0:02:55.6]} 11. Ne5
{[%clk 0:03:04.2]} 11... Nd5 {[%clk 0:02:55.6]} 12. Nxc4 {[%clk 0:03:05.8]}
12... Na6 {[%clk 0:02:56.3]} 13. Bd2 {[%clk 0:02:53.9]} 13... c5 {[%clk
0:02:54.8]} 14. Ne3 {[%clk 0:02:29]} 14... cxd4 {[%clk 0:02:39.9]} 15. Ncxd5
{[%clk 0:02:12.6]} 15... exd5 {[%clk 0:02:05]} 16. Nf5 {[%clk 0:02:13.3]} 16...
Bf6 {[%clk 0:02:04.9]} 17. Bf4 {[%clk 0:02:13.2]} 17... d3 {[%clk 0:01:51.3]}
18. Nd6 {[%clk 0:01:43.5]} 18... dxe2 {[%clk 0:01:37]} 19. Qxe2 {[%clk
0:01:45.4]} 19... Qd7 {[%clk 0:01:36.6]} 20. Rfd1 {[%clk 0:01:44.7]} 20... Rad8
{[%clk 0:01:32.9]} 21. Bh3 {[%clk 0:01:26]} 21... Qxh3 {[%clk 0:01:28.3]} 22.
Nxb7 {[%clk 0:01:27.1]} 22... Nc5 {[%clk 0:01:19.4]} 23. Nxd8 {[%clk 0:01:27.9]}
23... Rxd8 {[%clk 0:01:21.3]} 24. b4 {[%clk 0:01:22.1]} 24... Ne6 {[%clk
0:01:21.7]} 25. Be5 {[%clk 0:01:05.7]} 25... Be7 {[%clk 0:01:20]} 26. Bc7 {[%clk
0:01:02.8]} 26... Re8 {[%clk 0:01:19.7]} 27. Rxd5 {[%clk 0:01:02.8]} 27... Bxb4
{[%clk 0:01:18.2]} 28. Rh5 {[%clk 0:00:54.2]} 28... Nxc7 {[%clk 0:01:09.7]} 29.
Qxe8+ {[%clk 0:00:54.7]} 29... Nxe8 {[%clk 0:01:11.6]} 30. Rxh3 {[%clk
0:00:56.4]} 30... f5 {[%clk 0:00:55.1]} 31. Rc8 {[%clk 0:00:55.8]} 31... Kf7
{[%clk 0:00:54.5]} 32. Rxh7 {[%clk 0:00:56.4]} 32... Be7 {[%clk 0:00:51.7]} 33.
Rxe8 {[%clk 0:00:56.8]} 33... Kxe8 {[%clk 0:00:53.5]} 34. Rxg7 {[%clk
0:00:58.3]} 34... b5 {[%clk 0:00:54.4]} 35. h4 {[%clk 0:00:56.2]} 1-0

[Event "*** MasterClass Titled Tuesday Blitz"]
[Site "Chess.com"]
[Date "2017.11.07"]
[Round "6"]
[White "AbdAlAgathos"]
[Black "PrinceMurad09"]
[Result "1-0"]
[WhiteElo "2233"]
[BlackElo "2242"]
[TimeControl "180+2"]
[EndTime "15:26:55 PST"]
[Termination "AbdAlAgathos won by resignation"]

1. e4 {[%clk 0:03:01.9]} 1... c5 {[%clk 0:03:01.1]} 2. Nf3 {[%clk 0:03:02.2]}
2... d6 {[%clk 0:03:02.6]} 3. d4 {[%clk 0:03:02.7]} 3... cxd4 {[%clk 0:03:04.1]}
4. Nxd4 {[%clk 0:03:04.6]} 4... Nf6 {[%clk 0:03:05.7]} 5. Nc3 {[%clk 0:03:05.6]}
5... g6 {[%clk 0:03:07.4]} 6. Be3 {[%clk 0:03:05.1]} 6... Bg7 {[%clk 0:03:09]}
7. f3 {[%clk 0:03:06.3]} 7... Nc6 {[%clk 0:03:10.6]} 8. Qd2 {[%clk 0:03:07.1]}
8... O-O {[%clk 0:03:12.2]} 9. O-O-O {[%clk 0:03:07.3]} 9... d5 {[%clk
0:03:13.4]} 10. exd5 {[%clk 0:02:53.2]} 10... Nxd5 {[%clk 0:03:14.1]} 11. Nxc6
{[%clk 0:02:54.7]} 11... bxc6 {[%clk 0:03:16]} 12. Bd4 {[%clk 0:02:56]} 12...
Bxd4 {[%clk 0:03:16.4]} 13. Qxd4 {[%clk 0:02:56]} 13... Qb6 {[%clk 0:03:18.3]}
14. Nxd5 {[%clk 0:02:50.6]} 14... cxd5 {[%clk 0:03:17]} 15. Qxb6 {[%clk
0:02:46.4]} 15... axb6 {[%clk 0:03:18.9]} 16. Kb1 {[%clk 0:02:47.8]} 16... Bb7
{[%clk 0:03:09]} 17. h4 {[%clk 0:02:40.2]} 17... e5 {[%clk 0:03:09]} 18. h5
{[%clk 0:02:40.5]} 18... Kg7 {[%clk 0:03:10.2]} 19. Rh4 {[%clk 0:02:34.4]} 19...
f5 {[%clk 0:03:06.1]} 20. c4 {[%clk 0:02:09.7]} 20... d4 {[%clk 0:03:05.4]} 21.
f4 {[%clk 0:02:09.2]} 21... e4 {[%clk 0:02:45]} 22. Rxd4 {[%clk 0:02:08.2]}
22... Rfd8 {[%clk 0:02:46.1]} 23. Rxd8 {[%clk 0:01:58.2]} 23... Rxd8 {[%clk
0:02:48]} 24. Kc2 {[%clk 0:01:58.8]} 24... e3 {[%clk 0:02:42.4]} 25. Bd3 {[%clk
0:01:44.4]} 25... Bxg2 {[%clk 0:02:40.4]} 26. hxg6 {[%clk 0:01:33.8]} 26... hxg6
{[%clk 0:02:40]} 27. Rh2 {[%clk 0:01:30.4]} 27... Bf3 {[%clk 0:02:39.7]} 28. a4
{[%clk 0:01:23.1]} 28... g5 {[%clk 0:02:25.7]} 29. fxg5 {[%clk 0:01:17.7]} 29...
f4 {[%clk 0:02:26.5]} 30. Rh7+ {[%clk 0:00:34.7]} 30... Kg8 {[%clk 0:02:26.3]}
31. Rh4 {[%clk 0:00:33.8]} 31... Rf8 {[%clk 0:02:09.7]} 32. b4 {[%clk
0:00:17.9]} 32... Bc6 {[%clk 0:02:09.6]} 33. b5 {[%clk 0:00:15.3]} 33... Bb7
{[%clk 0:02:10.7]} 34. a5 {[%clk 0:00:14.5]} 34... bxa5 {[%clk 0:02:11.2]} 35.
c5 {[%clk 0:00:16]} 35... f3 {[%clk 0:02:10]} 36. c6 {[%clk 0:00:17.4]} 36... e2
{[%clk 0:02:10]} 37. Kd2 {[%clk 0:00:17]} 37... Rd8 {[%clk 0:02:11.2]} 38. Re4
{[%clk 0:00:12.1]} 38... Bc8 {[%clk 0:02:08.3]} 39. b6 {[%clk 0:00:12]} 39...
Rxd3+ {[%clk 0:02:03.6]} 40. Kxd3 {[%clk 0:00:12.5]} 40... Bf5 {[%clk
0:02:05.5]} 41. Kd2 {[%clk 0:00:11.2]} 41... Bxe4 {[%clk 0:02:03.5]} 42. b7
{[%clk 0:00:12.4]} 42... Bxc6 {[%clk 0:01:57.5]} 43. b8=Q+ {[%clk 0:00:13.3]}
43... Kg7 {[%clk 0:01:59.4]} 44. Qc7+ {[%clk 0:00:14]} 44... Kg6 {[%clk
0:02:01.3]} 45. Qxc6+ {[%clk 0:00:15.2]} 45... Kxg5 {[%clk 0:02:02.9]} 46. Qxf3
{[%clk 0:00:16.6]} 1-0

[Event "*** MasterClass Titled Tuesday Blitz"]
[Site "Chess.com"]
[Date "2017.11.07"]
[Round "6"]
[White "NateSolon"]
[Black "EndgameGrinder"]
[Result "1-0"]
[WhiteElo "2389"]
[BlackElo "2481"]
[TimeControl "180+2"]
[EndTime "15:26:59 PST"]
[Termination "NateSolon won by resignation"]

1. d4 {[%clk 0:03:01.9]} 1... Nf6 {[%clk 0:02:59.9]} 2. Bf4 {[%clk 0:03:02.5]}
2... d5 {[%clk 0:03:00.4]} 3. e3 {[%clk 0:03:03.5]} 3... Bf5 {[%clk 0:02:57.3]}
4. c4 {[%clk 0:03:03.4]} 4... e6 {[%clk 0:02:57.9]} 5. Nc3 {[%clk 0:03:03.8]}
5... c6 {[%clk 0:02:58.1]} 6. Qb3 {[%clk 0:03:04.3]} 6... Qd7 {[%clk 0:02:46]}
7. Nf3 {[%clk 0:02:58.8]} 7... dxc4 {[%clk 0:02:13.1]} 8. Bxc4 {[%clk
0:02:58.4]} 8... Be7 {[%clk 0:02:14]} 9. O-O {[%clk 0:02:52.4]} 9... O-O {[%clk
0:02:14.5]} 10. Rac1 {[%clk 0:02:45.1]} 10... b5 {[%clk 0:02:09]} 11. Be2 {[%clk
0:02:40.8]} 11... Qb7 {[%clk 0:02:06.4]} 12. Ne5 {[%clk 0:02:20.5]} 12... Nfd7
{[%clk 0:02:06.7]} 13. Bf3 {[%clk 0:02:18.3]} 13... Nxe5 {[%clk 0:02:07.1]} 14.
Bxe5 {[%clk 0:02:19.5]} 14... a6 {[%clk 0:02:05.1]} 15. Bg3 {[%clk 0:02:04]}
15... Rc8 {[%clk 0:01:36.1]} 16. Ne4 {[%clk 0:01:59.7]} 16... Bxe4 {[%clk
0:01:31.7]} 17. Bxe4 {[%clk 0:02:00.7]} 17... Nd7 {[%clk 0:01:31.6]} 18. Rc2
{[%clk 0:01:54.8]} 18... Nf6 {[%clk 0:01:08.2]} 19. Bf3 {[%clk 0:01:55.9]} 19...
Nd5 {[%clk 0:01:04.2]} 20. Rfc1 {[%clk 0:01:56.2]} 20... Qd7 {[%clk 0:00:56.9]}
21. a3 {[%clk 0:01:45.1]} 21... Bd6 {[%clk 0:00:56]} 22. Bxd6 {[%clk 0:01:38.9]}
22... Qxd6 {[%clk 0:00:57.9]} 23. Rc5 {[%clk 0:01:39.9]} 23... Rc7 {[%clk
0:00:50.4]} 24. Qc2 {[%clk 0:01:36.4]} 24... Rac8 {[%clk 0:00:50.2]} 25. Qd2
{[%clk 0:01:37.6]} 25... g6 {[%clk 0:00:43.3]} 26. Qa5 {[%clk 0:01:38.2]} 26...
Ra7 {[%clk 0:00:36]} 27. g3 {[%clk 0:01:38.2]} 27... Kg7 {[%clk 0:00:35.3]} 28.
Kg2 {[%clk 0:01:37.8]} 28... h5 {[%clk 0:00:36.5]} 29. e4 {[%clk 0:01:36.5]}
29... Ne7 {[%clk 0:00:35.5]} 30. Qc3 {[%clk 0:01:35.7]} 30... Kg8 {[%clk
0:00:21.4]} 31. d5 {[%clk 0:01:33.4]} 31... Rac7 {[%clk 0:00:19.2]} 32. e5
{[%clk 0:01:32.9]} 32... Qd8 {[%clk 0:00:20]} 33. d6 {[%clk 0:01:33.5]} 33...
Rd7 {[%clk 0:00:19.6]} 34. dxe7 {[%clk 0:01:33.1]} 34... Qxe7 {[%clk 0:00:21.5]}
35. Rxc6 {[%clk 0:01:32.5]} 35... Rcd8 {[%clk 0:00:23.1]} 36. Rc7 {[%clk
0:01:32.2]} 36... Kg7 {[%clk 0:00:24.2]} 37. Qc6 {[%clk 0:01:28.9]} 37... Rxc7
{[%clk 0:00:19.8]} 38. Qxc7 {[%clk 0:01:30.2]} 38... Qg5 {[%clk 0:00:21.4]} 39.
h4 {[%clk 0:01:22.7]} 39... Qd2 {[%clk 0:00:22.1]} 40. Rd1 {[%clk 0:01:22.6]}
1-0

[Event "*** MasterClass Titled Tuesday Blitz"]
[Site "Chess.com"]
[Date "2017.11.07"]
[Round "6"]
[White "FairChess_on_YouTube"]
[Black "VitaliyBernadskiy"]
[Result "1-0"]
[WhiteElo "2782"]
[BlackElo "2576"]
[TimeControl "180+2"]
[EndTime "15:27:12 PST"]
[Termination "FairChess_on_YouTube won by resignation"]

1. d4 {[%clk 0:03:01.9]} 1... e6 {[%clk 0:03:00.7]} 2. Nf3 {[%clk 0:03:02.1]}
2... c5 {[%clk 0:03:01]} 3. e4 {[%clk 0:03:01.6]} 3... cxd4 {[%clk 0:03:01.9]}
4. Nxd4 {[%clk 0:03:03.5]} 4... Nc6 {[%clk 0:03:03.2]} 5. Nc3 {[%clk 0:03:04.4]}
5... a6 {[%clk 0:03:03.8]} 6. Nxc6 {[%clk 0:03:05.3]} 6... bxc6 {[%clk
0:03:05.1]} 7. Bd3 {[%clk 0:03:06]} 7... d5 {[%clk 0:03:04.8]} 8. O-O {[%clk
0:03:07]} 8... Nf6 {[%clk 0:03:05.8]} 9. Qf3 {[%clk 0:03:08]} 9... Qc7 {[%clk
0:03:06.2]} 10. Bf4 {[%clk 0:03:03.1]} 10... Bd6 {[%clk 0:03:06.7]} 11. Bxd6
{[%clk 0:02:59.7]} 11... Qxd6 {[%clk 0:03:08.1]} 12. Rfe1 {[%clk 0:03:00]} 12...
Qe7 {[%clk 0:02:52.3]} 13. Rad1 {[%clk 0:02:59.6]} 13... Bb7 {[%clk 0:02:51.2]}
14. Qh3 {[%clk 0:02:55.2]} 14... h6 {[%clk 0:02:47.3]} 15. exd5 {[%clk
0:02:27.1]} 15... cxd5 {[%clk 0:02:47.8]} 16. Ne2 {[%clk 0:02:27.9]} 16... O-O
{[%clk 0:02:41.6]} 17. Nd4 {[%clk 0:02:28.7]} 17... Qb4 {[%clk 0:02:31.8]} 18.
c3 {[%clk 0:02:26.5]} 18... Qb6 {[%clk 0:02:13.4]} 19. Re3 {[%clk 0:02:26.7]}
19... Ne4 {[%clk 0:01:53.8]} 20. f3 {[%clk 0:02:17.2]} 20... Ng5 {[%clk
0:01:44.7]} 21. Qg3 {[%clk 0:02:18]} 21... Qxb2 {[%clk 0:01:45.9]} 22. Rb1
{[%clk 0:01:48.5]} 22... Qd2 {[%clk 0:01:46.2]} 23. f4 {[%clk 0:01:49]} 23...
Ne4 {[%clk 0:01:36]} 24. Bxe4 {[%clk 0:01:49.3]} 24... dxe4 {[%clk 0:01:37.4]}
25. Re2 {[%clk 0:01:45.4]} 25... Qd3 {[%clk 0:01:27.1]} 26. Rxb7 {[%clk
0:01:45.6]} 26... Rfc8 {[%clk 0:01:21.4]} 27. Rb3 {[%clk 0:01:27.8]} 27... a5
{[%clk 0:00:22.5]} 28. Qxd3 {[%clk 0:01:26.9]} 28... exd3 {[%clk 0:00:24]} 29.
Rd2 {[%clk 0:01:28.5]} 29... a4 {[%clk 0:00:25.5]} 30. Ra3 {[%clk 0:01:29.7]}
30... Rc4 {[%clk 0:00:27]} 31. Rxd3 {[%clk 0:01:29.5]} 31... Rb8 {[%clk
0:00:28.5]} 32. Kf2 {[%clk 0:01:08.6]} 32... Rb1 {[%clk 0:00:29.4]} 33. Ne2
{[%clk 0:01:08.5]} 33... Rb2 {[%clk 0:00:29.4]} 34. Rd4 {[%clk 0:01:08.1]} 34...
Rxd4 {[%clk 0:00:26]} 35. cxd4 {[%clk 0:01:08.9]} 35... Rb4 {[%clk 0:00:27.6]}
36. Ke3 {[%clk 0:01:08.8]} 36... g5 {[%clk 0:00:28.5]} 37. fxg5 {[%clk
0:01:08.3]} 37... hxg5 {[%clk 0:00:30]} 38. Nc3 {[%clk 0:01:08.6]} 38... Rb1
{[%clk 0:00:30.8]} 1-0

[Event "*** MasterClass Titled Tuesday Blitz"]
[Site "Chess.com"]
[Date "2017.11.07"]
[Round "6"]
[White "Robin-Side"]
[Black "johnathan113"]
[Result "1-0"]
[WhiteElo "2608"]
[BlackElo "2468"]
[TimeControl "180+2"]
[EndTime "15:27:28 PST"]
[Termination "Robin-Side won by resignation"]

1. d4 {[%clk 0:03:01.9]} 1... Nf6 {[%clk 0:03:00.5]} 2. Nc3 {[%clk 0:03:03.2]}
2... g6 {[%clk 0:03:01.1]} 3. e4 {[%clk 0:03:04.6]} 3... d5 {[%clk 0:03:02.5]}
4. e5 {[%clk 0:03:05.3]} 4... Ne4 {[%clk 0:03:03.8]} 5. Nxe4 {[%clk 0:03:05.5]}
5... dxe4 {[%clk 0:03:05.5]} 6. Be3 {[%clk 0:03:07.1]} 6... Bg7 {[%clk 0:03:03]}
7. c3 {[%clk 0:03:06.2]} 7... c5 {[%clk 0:03:02.8]} 8. Qd2 {[%clk 0:03:02.2]}
8... Nc6 {[%clk 0:03:01.2]} 9. O-O-O {[%clk 0:03:01.2]} 9... cxd4 {[%clk
0:02:59.3]} 10. cxd4 {[%clk 0:03:03.1]} 10... O-O {[%clk 0:03:00.7]} 11. Kb1
{[%clk 0:03:03.7]} 11... Bf5 {[%clk 0:02:53.1]} 12. h3 {[%clk 0:02:58.3]} 12...
h5 {[%clk 0:02:31.9]} 13. g4 {[%clk 0:02:50.8]} 13... hxg4 {[%clk 0:02:33.8]}
14. hxg4 {[%clk 0:02:52.7]} 14... Bxg4 {[%clk 0:02:35.7]} 15. Be2 {[%clk
0:02:53.8]} 15... Bxe2 {[%clk 0:02:30.8]} 16. Nxe2 {[%clk 0:02:55.7]} 16... Qa5
{[%clk 0:02:23.8]} 17. Nc3 {[%clk 0:02:46.3]} 17... Rfd8 {[%clk 0:02:14.1]} 18.
Nxe4 {[%clk 0:02:06.3]} 18... Rac8 {[%clk 0:01:51]} 19. Qxa5 {[%clk 0:01:54.1]}
19... Nxa5 {[%clk 0:01:52.9]} 20. b3 {[%clk 0:01:49.2]} 20... Nc6 {[%clk
0:01:39]} 21. f4 {[%clk 0:01:18.6]} 21... Rd5 {[%clk 0:01:39.5]} 22. Nc3 {[%clk
0:01:13.8]} 22... Rd7 {[%clk 0:01:40.5]} 23. Kb2 {[%clk 0:01:00.5]} 23... Nb4
{[%clk 0:01:38.3]} 24. a3 {[%clk 0:00:43.1]} 24... Nd5 {[%clk 0:01:36.5]} 25.
Nxd5 {[%clk 0:00:44.2]} 25... Rxd5 {[%clk 0:01:38.4]} 26. Rc1 {[%clk 0:00:45.3]}
26... Rxc1 {[%clk 0:01:22]} 27. Rxc1 {[%clk 0:00:47.2]} 27... Rd7 {[%clk
0:01:23.8]} 28. Rc8+ {[%clk 0:00:43.5]} 28... Kh7 {[%clk 0:01:24.6]} 29. Kc3
{[%clk 0:00:44.8]} 29... f6 {[%clk 0:01:25.8]} 30. Kc4 {[%clk 0:00:39.2]} 30...
Bh6 {[%clk 0:00:57]} 31. e6 {[%clk 0:00:35.7]} 31... Rd6 {[%clk 0:00:55.6]} 32.
d5 {[%clk 0:00:36.9]} 32... g5 {[%clk 0:00:51.3]} 33. fxg5 {[%clk 0:00:33]}
33... Bxg5 {[%clk 0:00:50.6]} 34. Bc5 {[%clk 0:00:25.1]} 34... Ra6 {[%clk
0:00:50.2]} 35. Bxe7 {[%clk 0:00:26]} 35... Bf4 {[%clk 0:00:49.1]} 36. Bxf6
{[%clk 0:00:24.5]} 36... Kg6 {[%clk 0:00:50.6]} 37. e7 {[%clk 0:00:23.6]} 1-0

[Event "*** MasterClass Titled Tuesday Blitz"]
[Site "Chess.com"]
[Date "2017.11.07"]
[Round "6"]
[White "GMKrikor"]
[Black "tango_argentino"]
[Result "0-1"]
[WhiteElo "2598"]
[BlackElo "2496"]
[TimeControl "180+2"]
[EndTime "15:27:52 PST"]
[Termination "tango_argentino won by resignation"]

1. e4 {[%clk 0:03:01.9]} 1... e6 {[%clk 0:02:59.9]} 2. d4 {[%clk 0:03:02.5]}
2... d5 {[%clk 0:03:01.2]} 3. Nd2 {[%clk 0:03:03.8]} 3... c5 {[%clk 0:03:00]} 4.
Ngf3 {[%clk 0:03:03.7]} 4... cxd4 {[%clk 0:03:01.1]} 5. Nxd4 {[%clk 0:03:04.3]}
5... Nc6 {[%clk 0:03:02.3]} 6. Bb5 {[%clk 0:03:04.7]} 6... Bd7 {[%clk
0:03:03.8]} 7. Nxc6 {[%clk 0:03:06.1]} 7... bxc6 {[%clk 0:03:04.2]} 8. Bd3
{[%clk 0:03:07.1]} 8... Bd6 {[%clk 0:03:05.9]} 9. O-O {[%clk 0:03:07.5]} 9...
Ne7 {[%clk 0:03:07.5]} 10. Qe2 {[%clk 0:03:06.1]} 10... Ng6 {[%clk 0:03:05.1]}
11. g3 {[%clk 0:03:02.9]} 11... O-O {[%clk 0:03:05.1]} 12. f4 {[%clk 0:02:59.6]}
12... Bc7 {[%clk 0:03:00.4]} 13. Nf3 {[%clk 0:02:57.4]} 13... c5 {[%clk
0:02:56.2]} 14. c4 {[%clk 0:02:53.8]} 14... Bc6 {[%clk 0:02:54.7]} 15. Bd2
{[%clk 0:02:48.8]} 15... Re8 {[%clk 0:02:46]} 16. Rad1 {[%clk 0:02:41.5]} 16...
Rb8 {[%clk 0:02:38.3]} 17. Bc1 {[%clk 0:02:32.6]} 17... d4 {[%clk 0:02:31.9]}
18. e5 {[%clk 0:02:25.7]} 18... f5 {[%clk 0:02:23.2]} 19. exf6 {[%clk
0:02:18.2]} 19... gxf6 {[%clk 0:02:19.4]} 20. Rde1 {[%clk 0:02:07.2]} 20... Qd7
{[%clk 0:02:19.9]} 21. Nd2 {[%clk 0:01:56.8]} 21... f5 {[%clk 0:02:17.9]} 22.
Nf3 {[%clk 0:01:53.4]} 22... Ba8 {[%clk 0:02:15.3]} 23. h3 {[%clk 0:01:46.7]}
23... Qc6 {[%clk 0:02:15.1]} 24. Qh2 {[%clk 0:01:30.3]} 24... Kh8 {[%clk
0:02:10.9]} 25. Rf2 {[%clk 0:01:17.4]} 25... Rg8 {[%clk 0:02:08.3]} 26. Kf1
{[%clk 0:01:18.7]} 26... Rbe8 {[%clk 0:01:55.7]} 27. h4 {[%clk 0:01:06.5]} 27...
e5 {[%clk 0:01:45.2]} 28. fxe5 {[%clk 0:00:59.6]} 28... Nxe5 {[%clk 0:01:40.5]}
29. Nxe5 {[%clk 0:00:59.1]} 29... Rxe5 {[%clk 0:01:41.6]} 30. Rxe5 {[%clk
0:00:54.8]} 30... Bxe5 {[%clk 0:01:43.5]} 31. Bf4 {[%clk 0:00:50.8]} 31... Bg7
{[%clk 0:01:35.1]} 32. Qh3 {[%clk 0:00:47.8]} 32... Rf8 {[%clk 0:01:33.9]} 33.
h5 {[%clk 0:00:49.3]} 33... h6 {[%clk 0:01:34.2]} 34. Qh4 {[%clk 0:00:40.8]}
34... Bf6 {[%clk 0:01:31.3]} 35. Qh3 {[%clk 0:00:40.1]} 35... Bg7 {[%clk
0:01:30.1]} 36. Qh4 {[%clk 0:00:41.5]} 36... Re8 {[%clk 0:01:20.7]} 37. Bd2
{[%clk 0:00:36.3]} 37... Qa4 {[%clk 0:01:17.3]} 38. b3 {[%clk 0:00:27.3]} 38...
Qxa2 {[%clk 0:01:17.9]} 39. Kg1 {[%clk 0:00:24.7]} 39... Qa1+ {[%clk 0:01:16.2]}
40. Rf1 {[%clk 0:00:23.2]} 40... Qb2 {[%clk 0:01:16]} 41. Qf4 {[%clk 0:00:20.9]}
41... Qxb3 {[%clk 0:01:12.8]} 42. Bxf5 {[%clk 0:00:21.6]} 42... Qb7 {[%clk
0:01:07.2]} 0-1